bitfinex-derivatives/quotes_SOLF0:USTF0_20250228
["timestamp","ask_amount","ask_price","bid_price","bid_amount"]
[1740717773132,1.56617071,127.7,127.57,424.93435841]
[1740717773332,7.8439,127.6,127.57,424.93435841]
[1740717773532,3.8226,127.59,127.57,424.93435841]
[1740717773834,3.8226,127.59,127.55,205.02916343]
[1740717774425,0.05591376,127.58,127.56,0.0501098]
[1740717775133,3.9852,127.69,127.56,0.0501098]
[1740717775530,3.9852,127.69,127.55,205.02916343]
[1740717776135,7.8429,127.62,127.55,205.02916343]
[1740717776635,7.8412,127.65,127.55,205.02916343]
[1740717776937,3.9852,127.69,127.61,0.05014911]
[1740717777131,3.9852,127.69,127.55,205.02916343]
[1740717777731,7.8434,127.61,127.55,205.02916343]
[1740717777935,3.9852,127.69,127.55,205.02916343]
[1740717778136,3.9852,127.69,127.55,145.07856804]
[1740717778538,0.05198019,127.63,127.61,0.05791945]
[1740717778830,3.9852,127.69,127.55,145.07856804]
[1740717779034,9.57141604,127.68,127.55,145.07856804]
[1740717779436,7.8452,127.58,127.55,145.07856804]
[1740717779635,7.77572619,127.58,127.55,145.07856804]
[1740717779843,9.57141604,127.68,127.55,145.07856804]
[1740717780036,9.57141604,127.68,127.55,145.13245813]
[1740717780335,0.0555194,127.58,127.55,145.13245813]
[1740717780542,9.57141604,127.68,127.55,145.07856804]
[1740717780841,9.57141604,127.68,127.55,145.13851566]
[1740717781042,9.57141604,127.68,127.55,145.07856804]
[1740717781441,3.9852,127.69,127.55,145.07856804]
[1740717781644,3.9852,127.69,127.56,8.2243]
[1740717782039,0.05394051,127.64,127.57,15.14]
[1740717782346,15.14,127.77,127.61,0.05418765]
[1740717782540,15.14,127.77,127.57,15.14]
[1740717782740,1.42337837,127.76,127.57,15.14]
[1740717782937,1.42337837,127.76,127.56,8.2243]
[1740717783247,2.98881356,127.76,127.56,8.2243]
[1740717783445,1.42337837,127.75,127.56,8.2243]
[1740717783646,1.42337837,127.75,127.65,0.05608103]
[1740717784042,5.3826426,127.74,127.56,8.2243]
[1740717784347,2.9878414,127.73,127.55,145.07856804]
[1740717784546,2.987964,127.72,127.55,145.07856804]
[1740717784743,1.42203854,127.71,127.55,145.07856804]
[1740717785245,0.05336698,127.64,127.62,0.05283191]
[1740717785845,15.14,127.7,127.55,145.07856804]
[1740717786047,0.05289094,127.64,127.62,0.05344473]
[1740717786442,0.05289094,127.64,127.55,89.92589309]
[1740717786443,23.5,127.64,127.55,89.92589309]
[1740717786642,7.6606,127.69,127.55,89.92589309]
[1740717786843,7.8413,127.65,127.55,89.92589309]
[1740717787047,7.6606,127.69,127.55,89.92589309]
[1740717787548,0.04994114,127.63,127.61,0.04985941]
[1740717787844,0.04994114,127.63,127.55,89.92589309]
[1740717788047,7.8415,127.64,127.55,89.92589309]
[1740717788247,0.0580863,127.6,127.58,0.05919641]
[1740717788746,7.6606,127.69,127.55,89.92589309]
[1740717788941,0.05286865,127.6,127.58,0.05388921]
[1740717789140,7.6606,127.69,127.55,89.92589309]
[1740717789341,0.05533896,127.6,127.55,89.92589309]
[1740717789541,0.05533896,127.6,127.56,0.05187741]
[1740717789747,7.6606,127.69,127.56,0.05187741]
[1740717790049,0.05596563,127.59,127.56,0.05187741]
[1740717790343,15.14,127.7,127.56,0.05458773]
[1740717790649,0.05445062,127.59,127.55,89.92589309]
[1740717790851,22.8964,127.71,127.55,89.92589309]
[1740717791044,7.8407,127.66,127.62,0.05918512]
[1740717791245,22.8964,127.71,127.62,0.05918512]
[1740717791445,0.05340238,127.64,127.56,4.1338]
[1740717791652,22.8964,127.71,127.65,0.05065964]
[1740717791847,0.05112934,127.61,127.56,4.1338]
[1740717792047,7.89442934,127.61,127.55,89.92589309]
[1740717792248,15.12,127.63,127.55,89.92589309]
[1740717792441,7.7793,127.62,127.55,89.92589309]
[1740717792751,7.8455,127.58,127.55,89.92589309]
[1740717793148,7.8455,127.58,127.57,0.05994999]
[1740717793347,0.05453145,127.6,127.55,89.92589309]
[1740717794750,0.05453145,127.6,127.56,0.05186887]
[1740717794952,0.05453145,127.6,127.56,4.15696887]
[1740717795851,15.12,127.65,127.56,4.15696887]
[1740717796051,15.12,127.65,127.57,0.3062]
[1740717796655,22.7796,127.7,127.57,0.3062]
[1740717797054,22.7796,127.7,127.56,4.1051]
[1740717797251,0.05694547,127.65,127.62,0.05135639]
[1740717797658,0.05694547,127.65,127.56,4.1051]
[1740717797854,0.05694547,127.65,127.62,0.05050589]
[1740717798057,22.7796,127.7,127.62,0.05050589]
[1740717798353,0.0565788,127.65,127.56,4.1051]
[1740717798756,22.7796,127.7,127.56,4.1051]
[1740717799057,0.05516952,127.62,127.59,0.05123518]
[1740717799256,0.05516952,127.62,127.61,7.8433]
[1740717799458,11.7041,127.7,127.56,4.1051]
[1740717799654,0.05047788,127.63,127.59,0.05185894]
[1740717799857,0.05047788,127.63,127.56,4.1051]
[1740717800150,3.8663,127.7,127.6,0.0549888]
[1740717800356,7.355e-05,127.61,127.6,0.0549888]
[1740717800558,7.8386,127.69,127.62,7.8421]
[1740717800851,83.79616021,127.79,127.56,4.1051]
[1740717801056,7.8349,127.75,127.68,7.8384]
[1740717801250,41.8980801,127.78,127.6,23.76]
[1740717801452,41.8980801,127.78,127.61,1.56727529]
[1740717801657,41.8980801,127.78,127.7,0.05536288]
[1740717801658,8.381e-05,127.73,127.7,0.05536288]
[1740717802262,8.381e-05,127.73,127.67,8.4343]
[1740717802661,8.381e-05,127.73,127.67,8.1339]
[1740717802862,7.83618381,127.73,127.67,4.0733]
[1740717803159,8.381e-05,127.73,127.69,0.05470862]
[1740717803358,7.8378,127.7,127.69,0.05470862]
[1740717803563,190.0,127.76,127.62,4.361]
[1740717803757,0.04820394,127.71,127.68,0.05433427]
[1740717804155,0.04820394,127.71,127.62,4.361]
[1740717804358,0.04820394,127.71,127.68,0.06031465]
[1740717804564,3.8532,127.71,127.68,0.06031465]
[1740717804758,3.8532,127.71,127.62,4.0606]
[1740717804954,0.04820394,127.71,127.62,4.0606]
[1740717805153,3.8532,127.75,127.68,0.05220706]
[1740717805361,3.8532,127.75,127.62,4.0606]
[1740717805966,0.04820394,127.7,127.68,7.8386]
[1740717806263,3.8532,127.75,127.68,7.8386]
[1740717806467,7.8359,127.74,127.68,0.0574859]
[1740717806663,0.04820394,127.7,127.68,0.0574859]
[1740717806962,3.8532,127.75,127.68,0.0574859]
[1740717807165,0.04820394,127.7,127.68,0.0574859]
[1740717807366,3.8532,127.75,127.68,0.0574859]
[1740717807564,0.04820394,127.7,127.69,7.8379]
[1740717807766,3.8532,127.75,127.69,7.8379]
[1740717807962,0.04820394,127.71,127.69,7.8379]
[1740717808166,0.04820394,127.71,127.62,4.0606]
[1740717808366,0.04820394,127.71,127.69,0.05184382]
[1740717808568,3.8532,127.75,127.62,4.0606]
[1740717808769,0.04820394,127.71,127.65,7.8404]
[1740717809167,0.04820394,127.71,127.62,4.0606]
[1740717809670,15.12,127.71,127.59,0.76350019]
[1740717809968,0.04973748,127.68,127.65,0.05800609]
[1740717810163,0.04973748,127.68,127.62,7.8425]
[1740717810368,0.04973748,127.68,127.59,0.76350019]
[1740717810762,190.0,127.67,127.59,0.76350019]
[1740717811067,190.0,127.67,127.52,8.3492]
[1740717811472,9.82e-06,127.61,127.6,7.8434]
[1740717811861,4.0077,127.69,127.52,8.3492]
[1740717812668,0.05767016,127.62,127.59,0.0547408]
[1740717812864,23.43863886,127.66,127.59,0.0547408]
[1740717813176,23.43863886,127.66,127.54,15.12]
[1740717814173,23.43863886,127.66,127.63,7.8417]
[1740717814376,0.04728369,127.61,127.54,15.12]
[1740717814575,23.43863886,127.66,127.54,15.12]
[1740717814767,23.43863886,127.66,127.63,0.0597227]
[1740717814969,0.04728369,127.61,127.52,8.3492]
[1740717815271,15.12,127.66,127.55,0.04957092]
[1740717815472,8.369e-05,127.58,127.55,0.04957092]
[1740717815675,26.9554,127.66,127.52,8.3492]
[1740717816071,19.1148,127.66,127.52,8.3492]
[1740717816272,7.8415,127.64,127.6,7.8435]
[1740717816471,19.1148,127.66,127.6,7.8435]
[1740717816671,19.1148,127.66,127.61,0.05715254]
[1740717817176,19.1148,127.66,127.52,8.3492]
[1740717818077,19.1148,127.66,127.53,7.8478]
[1740717818277,0.05723623,127.6,127.58,0.05571204]
[1740717818475,190.0,127.64,127.46,4.496]
[1740717818671,194.1878,127.63,127.46,8.4499]
[1740717819569,0.05370303,127.56,127.53,0.05025131]
[1740717819769,15.12,127.58,127.46,8.0329]
[1740717819978,15.12,127.58,127.53,0.0514553]
[1740717820175,1.56715248,127.62,127.57,7.8456]
[1740717820375,4.334e-05,127.57,127.54,3.9139]
[1740717820571,15.12,127.64,127.54,7.8678]
[1740717820972,10.47452002,127.67,127.55,0.5299]
[1740717821274,78.82804464,127.62,127.55,0.5299]
[1740717821474,49.64366454,127.62,127.53,213.28]
[1740717821679,124.73618933,127.65,127.57,0.05355692]
[1740717821979,207.89364889,127.66,127.54,210.12]
[1740717822280,207.89364889,127.66,127.63,7.8415]
[1740717822475,201.58544889,127.66,127.54,15.12]
[1740717822676,196.78394889,127.66,127.54,16.68813548]
[1740717822881,196.78394889,127.66,127.65,7.8408]
[1740717823189,196.78394889,127.66,127.55,196.56801254]
[1740717823380,196.78394889,127.66,127.63,7.8416]
[1740717823582,196.78394889,127.66,127.64,0.05650452]
[1740717823983,196.78394889,127.66,127.55,196.56801254]
[1740717824178,196.78394889,127.66,127.64,0.05097604]
[1740717824377,11.9761,127.75,127.55,1.56801254]
[1740717824378,11.9761,127.75,127.55,196.56801254]
[1740717824682,11.9761,127.75,127.64,0.05735799]
[1740717825074,11.9761,127.75,127.55,196.56801254]
[1740717825278,11.9761,127.75,127.68,0.05089157]
[1740717825474,7.8385,127.69,127.55,1.56801254]
[1740717825785,11.9761,127.75,127.55,1.56801254]
[1740717825786,15.12,127.72,127.55,1.56801254]
[1740717825975,22.9568,127.72,127.61,7.8433]
[1740717826180,15.12,127.72,127.55,196.56801254]
[1740717826375,15.12,127.72,127.55,1.56801254]
[1740717826782,0.05089157,127.65,127.62,0.05873936]
[1740717827586,0.05089157,127.65,127.62,7.90103936]
[1740717827882,0.05089157,127.65,127.62,0.05873936]
[1740717828382,0.05089157,127.65,127.64,7.8415]
[1740717828585,11.9761,127.75,127.62,23.55873936]
[1740717828884,11.9761,127.75,127.55,1.56801254]
[1740717829086,6.11917,127.76,127.57,23.76]
[1740717829286,6.11917,127.76,127.58,3.0079881]
[1740717829483,6.11917,127.76,127.57,23.76]
[1740717829484,6.11917,127.76,127.59,1.56752096]
[1740717829686,6.11917,127.76,127.59,2.33102385]
[1740717829886,6.11917,127.76,127.66,0.05140582]
[1740717830079,6.11917,127.76,127.66,213.22]
[1740717830285,6.11917,127.76,127.71,7.8368]
[1740717830689,6.11917,127.76,127.7,0.05410779]
[1740717831189,6.11917,127.76,127.72,7.8365]
[1740717831586,6.11917,127.76,127.73,0.05730544]
[1740717832191,6.11917,127.76,127.73,7.89280544]
[1740717832381,6.11917,127.76,127.73,0.05730544]
[1740717832889,6.11917,127.76,127.66,213.22]
[1740717833481,6.11917,127.76,127.7,7.8373]
[1740717833686,6.11917,127.76,127.66,213.22]
[1740717833888,0.05253687,127.72,127.7,0.05141208]
[1740717834689,0.05253687,127.72,127.71,7.8373]
[1740717834899,0.05253687,127.72,127.7,0.05141208]
[1740717837089,3.687e-05,127.72,127.7,0.05141208]
[1740717837492,3.687e-05,127.72,127.71,7.8373]
[1740717839190,3.687e-05,127.72,127.7,1.58361208]
[1740717839393,3.687e-05,127.72,127.66,213.22]
[1740717839593,3.687e-05,127.72,127.59,2.33102385]
[1740717839794,7.8368,127.72,127.59,2.33102385]
[1740717840097,3.8759,127.74,127.59,2.33102385]
[1740717840098,18.9759,127.74,127.59,2.33102385]
[1740717840300,18.9759,127.74,127.59,0.76350289]
[1740717840497,0.05621752,127.68,127.65,7.89186203]
[1740717840795,18.9759,127.74,127.59,0.76350289]
[1740717841700,7.8375,127.71,127.59,0.76350289]
[1740717841898,18.9759,127.74,127.59,0.76350289]
[1740717842097,0.052261,127.66,127.64,0.05607945]
[1740717842504,7.8371,127.72,127.64,7.8415]
[1740717842697,0.05920875,127.66,127.64,0.05328669]
[1740717842897,7.8371,127.72,127.63,7.8417]
[1740717843093,190.0,127.73,127.59,0.76350289]
[1740717843399,8.728e-05,127.66,127.64,0.05313275]
[1740717843599,7.8367,127.72,127.64,7.8413]
[1740717843897,208.9759,127.74,127.59,0.76350289]
[1740717844099,18.9759,127.74,127.59,0.76350289]
[1740717844401,0.05741539,127.68,127.65,0.0601289]
[1740717844596,1.539e-05,127.68,127.61,4.1727]
[1740717844803,3.8759,127.74,127.61,4.1727]
[1740717845203,3.8759,127.74,127.71,7.8368]
[1740717845400,3.8759,127.74,127.61,4.2659]
[1740717845908,3.8759,127.74,127.66,0.05739499]
[1740717846207,3.8759,127.74,127.59,0.76350289]
[1740717846402,7.837,127.72,127.59,0.76350289]
[1740717846610,3.8759,127.74,127.59,0.76350289]
[1740717846907,11.7118,127.74,127.68,7.8389]
[1740717847206,0.05282983,127.72,127.7,0.05060237]
[1740717847401,3.8759,127.74,127.59,0.76350289]
[1740717847607,3.8759,127.74,127.6,15.6876]
[1740717847809,3.8759,127.74,127.61,15.1]
[1740717848610,3.8759,127.74,127.71,7.8372]
[1740717849008,3.92627034,127.74,127.71,7.8372]
[1740717849207,3.92627034,127.74,127.71,0.05519346]
[1740717849809,3.92627034,127.74,127.73,7.836]
[1740717850810,7.034e-05,127.74,127.73,7.836]
[1740717851715,7.034e-05,127.74,127.61,15.1]
[1740717852212,7.8419,127.75,127.61,15.1]
[1740717852808,7.8419,127.75,127.7,7.8376]
[1740717853008,7.8419,127.75,127.67,0.05053013]
[1740717853009,0.0537449,127.69,127.67,0.05053013]
[1740717853311,7.8419,127.75,127.61,15.1]
[1740717853512,7.109e-05,127.69,127.67,0.05557651]
[1740717853712,7.109e-05,127.69,127.68,7.839]
[1740717854007,7.8419,127.75,127.61,15.1]
[1740717854208,7.8419,127.75,127.73,7.8355]
[1740717854414,7.8419,127.75,127.62,15.6854]
[1740717854608,7.89620446,127.75,127.73,0.05778623]
[1740717854808,7.8419,127.75,127.74,7.8354]
[1740717855009,7.89713427,127.75,127.74,7.8354]
[1740717855210,7.89713427,127.75,127.63,3.8359]
[1740717855410,7.8419,127.75,127.63,3.8359]
[1740717856411,7.8419,127.75,127.72,7.8362]
[1740717856804,7.8419,127.75,127.63,3.8359]
[1740717857005,7.89509738,127.75,127.72,0.05328199]
[1740717857214,7.8419,127.75,127.68,0.05813182]
[1740717857512,7.8419,127.75,127.63,3.8359]
[1740717857709,0.05907461,127.73,127.7,0.05901763]
[1740717858015,0.05964994,127.73,127.62,15.6854]
[1740717858209,7.8419,127.75,127.62,15.6854]
[1740717858811,7.8419,127.75,127.6,3.968]
[1740717859004,190.0,127.74,127.59,0.76350289]
[1740717859208,7.89595273,127.69,127.66,0.05506778]
[1740717859409,7.89595273,127.69,127.59,0.76350289]
[1740717859410,4.1637,127.68,127.59,0.76350289]
[1740717859908,4.1637,127.68,127.65,7.8404]
[1740717860109,4.1637,127.68,127.59,0.76350289]
[1740717860514,4.1637,127.68,127.65,7.8404]
[1740717860911,3.9301,127.67,127.65,0.050253]
[1740717861115,3.9301,127.67,127.59,0.76350289]
[1740717861511,3.9301,127.67,127.66,7.8402]
[1740717861711,15.1,127.74,127.59,0.76350289]
[1740717862108,7.8363,127.73,127.59,0.76350289]
[1740717862313,0.04960312,127.68,127.65,0.04998975]
[1740717862514,7.8366,127.72,127.67,7.8392]
[1740717862715,0.0541979,127.68,127.65,0.05521688]
[1740717862914,15.1,127.74,127.59,0.76350289]
[1740717863116,0.05569688,127.68,127.67,7.8394]
[1740717863415,15.1,127.74,127.59,0.76350289]
[1740717863616,0.05211874,127.69,127.66,7.89484826]
[1740717863816,0.05211874,127.69,127.66,7.8401]
[1740717864015,0.05211874,127.69,127.66,0.04968036]
[1740717864213,7.89051874,127.69,127.64,7.8411]
[1740717864418,15.1,127.74,127.58,187.67118264]
[1740717864819,7.8364,127.73,127.68,7.8384]
[1740717865018,16.92688855,127.76,127.59,15.6887]
[1740717865222,24.76148855,127.76,127.72,7.8364]
[1740717865515,0.05207181,127.75,127.61,210.1]
[1740717865821,6.11917,127.76,127.68,7.8389]
[1740717866015,0.05338623,127.69,127.68,7.8389]
[1740717866320,0.05857136,127.7,127.68,7.8389]
[1740717866517,12.2707,127.75,127.69,7.8384]
[1740717866719,0.05624252,127.7,127.69,7.8384]
[1740717867020,12.2707,127.75,127.69,7.8384]
[1740717867221,0.05951835,127.71,127.7,7.8378]
[1740717867421,8.1052,127.75,127.62,3.9227]
[1740717867613,0.05699042,127.72,127.69,0.0566028]
[1740717868415,0.05699042,127.72,127.69,7.8948028]
[1740717869416,0.05699042,127.72,127.69,0.0566028]
[1740717869619,9.042e-05,127.72,127.71,7.8371]
[1740717872223,6.042e-05,127.76,127.7,4.1783]
[1740717872426,6.042e-05,127.76,127.75,7.8347]
[1740717873424,7.285e-05,127.77,127.74,0.05914477]
[1740717873628,7.285e-05,127.77,127.71,4.1449]
[1740717874627,7.285e-05,127.77,127.73,0.05926967]
[1740717876026,7.285e-05,127.77,127.65,7.8606]
[1740717876027,7.285e-05,127.77,127.69,7.8381]
[1740717876219,190.0,127.76,127.63,15.08]
[1740717876421,193.8429,127.75,127.62,85.86189078]
[1740717876630,190.0,127.74,127.62,85.86189078]
[1740717877124,3.8429,127.75,127.64,7.8413]
[1740717877125,190.0,127.73,127.64,7.8413]
[1740717877326,0.05240987,127.69,127.67,0.05288455]
[1740717877629,3.9591,127.71,127.62,85.86189078]
[1740717877820,7.8378,127.7,127.62,85.86189078]
[1740717878219,3.9591,127.71,127.66,7.8397]
[1740717878423,3.9591,127.71,127.62,85.86189078]
[1740717878625,0.05419844,127.7,127.67,0.05253053]
[1740717879230,0.05419844,127.7,127.69,7.8383]
[1740717879428,9.844e-05,127.7,127.69,7.8383]
[1740717880923,9.844e-05,127.7,127.69,31.3383]
[1740717881128,9.844e-05,127.7,127.69,37.1911]
[1740717881832,10.80771855,127.78,127.69,37.1911]
[1740717881833,1.699e-05,127.78,127.77,7.8334]
[1740717882233,8.1006,127.81,127.69,5.8528]
[1740717882831,3.717e-05,127.76,127.74,0.05024002]
[1740717883030,3.952,127.81,127.74,0.05024002]
[1740717883533,8.0771,127.84,127.74,0.05024002]
[1740717883733,8.0771,127.84,127.7,15.08]
[1740717883934,1.699e-05,127.85,127.7,210.08]
[1740717884132,4.45e-06,127.78,127.76,0.04948627]
[1740717884335,1.699e-05,127.85,127.74,213.08]
[1740717884534,1.699e-05,127.85,127.84,7.8292]
[1740717885726,2.449e-05,127.86,127.85,7.8286]
[1740717885935,19.14537751,127.95,127.85,218.46]
[1740717886129,17.40967751,127.95,127.86,253.18421085]
[1740717886334,17.40967751,127.95,127.93,7.8236]
[1740717886535,17.40967751,127.95,127.94,15.08]
[1740717886838,17.40967751,127.95,127.94,22.903]
[1740717887033,17.40967751,127.95,127.94,46.343]
[1740717887234,17.40967751,127.95,127.94,38.52]
[1740717887530,17.40967751,127.95,127.94,15.08]
[1740717887736,17.40967751,127.95,127.94,38.52]
[1740717888534,589.12106879,127.98,127.94,38.52]
[1740717888737,312.03421734,128.0,127.94,15.08]
[1740717888932,129.56925946,128.06,127.94,15.08]
[1740717889937,0.05122775,128.01,127.99,0.0586244]
[1740717890232,129.56925946,128.06,127.99,0.0586244]
[1740717890536,0.05058394,128.01,127.99,0.0586244]
[1740717891035,129.56925946,128.06,128.0,6.67176909]
[1740717891232,0.05122775,128.01,128.0,6.67176909]
[1740717891428,129.56925946,128.06,128.01,6.67176909]
[1740717891637,0.05122775,128.02,128.01,6.67176909]
[1740717891836,129.56925946,128.06,128.01,6.67176909]
[1740717892137,0.05122775,128.03,128.01,6.67176909]
[1740717892337,4.0942,128.1,128.01,6.67176909]
[1740717892533,0.05122775,128.03,128.01,6.72687695]
[1740717892735,4.0942,128.1,128.01,6.67176909]
[1740717893040,0.05122775,128.03,128.01,6.73060317]
[1740717893241,4.0942,128.1,128.01,6.67176909]
[1740717893537,7.8164,128.05,128.01,6.67176909]
[1740717893729,0.05043404,128.07,128.04,0.05120872]
[1740717893932,8.282,128.18,128.04,23.42]
[1740717894239,4.0245,128.17,128.04,0.05531301]
[1740717894539,0.04968378,128.12,128.09,0.05225855]
[1740717894934,0.04968378,128.12,128.09,0.05282725]
[1740717895235,0.04968378,128.12,128.09,23.47282725]
[1740717895434,0.04968378,128.12,128.09,0.05282725]
[1740717895839,0.04968378,128.12,128.1,6.77906355]
[1740717896231,15.04,128.3,128.09,0.05282725]
[1740717896232,23.3593,128.55,128.11,227.7]
[1740717896437,8.0042,128.38,128.12,1.56103652]
[1740717896637,4.0646,128.37,128.12,1.56103652]
[1740717896834,4.0646,128.37,128.22,7.8059]
[1740717897140,4.0646,128.37,128.23,15.04]
[1740717897339,4.1964,128.36,128.23,15.04]
[1740717897539,4.1964,128.36,128.28,0.05751899]
[1740717897943,4.1964,128.36,128.23,15.04]
[1740717898142,4.1964,128.36,128.31,0.04936246]
[1740717898337,7.8024,128.28,128.23,15.04]
[1740717898537,4.1964,128.36,128.16,7.8091]
[1740717898538,4.1964,128.36,128.18,85.86189078]
[1740717898737,4.0646,128.37,128.18,85.86189078]
[1740717899642,4.0646,128.37,128.26,0.05737464]
[1740717899643,0.04936246,128.29,128.26,0.05737464]
[1740717899843,0.04936246,128.29,128.18,85.86189078]
[1740717900044,4.0646,128.37,128.18,85.86189078]
[1740717900542,4.0646,128.37,128.15,93.67209078]
[1740717900745,4.0646,128.37,128.15,85.86189078]
[1740717901044,0.04919311,128.27,128.25,0.05984713]
[1740717901245,4.0646,128.37,128.15,85.86189078]
[1740717902238,4.0646,128.37,128.16,18.82109937]
[1740717902438,0.05481283,128.27,128.25,0.04961575]
[1740717902839,4.0646,128.37,128.23,15.02]
[1740717903037,0.05447838,128.27,128.25,0.05233089]
[1740717903244,4.0646,128.37,128.23,15.02]
[1740717903438,0.05335292,128.27,128.25,0.05521346]
[1740717903641,4.0646,128.37,128.17,16.58042755]
[1740717903839,4.0646,128.37,128.25,0.05282564]
[1740717904035,0.05486519,128.27,128.17,15.02]
[1740717904238,4.0646,128.37,128.17,15.02]
[1740717904946,4.0646,128.37,128.15,6.59971009]
[1740717905141,1.55811779,128.36,128.26,0.0590783]
[1740717905348,1.55811779,128.36,128.14,93.67269078]
[1740717905349,0.05035747,128.28,128.14,85.86189078]
[1740717905549,15.02,128.29,128.14,85.86189078]
[1740717906044,4.1644,128.28,128.14,85.86189078]
[1740717906446,0.0563578,128.22,128.2,0.05077642]
[1740717906642,0.0563578,128.22,128.06,85.86189078]
[1740717906837,7.8053,128.24,128.06,93.67739078]
[1740717907039,4.1644,128.28,128.06,85.86189078]
[1740717907641,4.1644,128.28,128.13,7.811]
[1740717907941,4.1644,128.28,128.16,0.05869039]
[1740717907942,0.055548,128.18,128.16,0.05869039]
[1740717908247,4.1644,128.28,128.16,7.8096]
[1740717908436,6.971e-05,128.18,128.16,0.05065981]
[1740717908745,4.1644,128.28,128.2,7.8072]
[1740717908940,1.55811779,128.36,128.13,212.4557]
[1740717909141,3.8732,128.35,128.13,212.4557]
[1740717909839,0.05168782,128.25,128.23,0.04931827]
[1740717910044,3.8732,128.35,128.23,0.04931827]
[1740717910245,7.9277,128.34,128.2,15.02]
[1740717910645,7.9277,128.34,128.22,7.806]
[1740717910948,7.9277,128.34,128.14,102.98211331]
[1740717911250,0.05877431,128.29,128.27,0.05665665]
[1740717911446,7.9277,128.34,128.14,85.86189078]
[1740717912652,0.05679057,128.25,128.23,0.05680174]
[1740717913150,7.9277,128.34,128.13,227.4557]
[1740717913451,0.05162044,128.25,128.23,0.0587606]
[1740717913749,0.05162044,128.25,128.2,7.8073]
[1740717913750,7.9277,128.34,128.2,7.8073]
[1740717914142,0.05186061,128.25,128.23,0.0590188]
[1740717914342,15.0,128.32,128.2,7.8073]
[1740717914550,0.04929097,128.25,128.23,0.05230707]
[1740717915048,15.0,128.32,128.19,7.8079]
[1740717915350,15.0,128.32,128.23,0.05360159]
[1740717915646,15.0,128.32,128.14,85.86189078]
[1740717915647,38.38,128.32,128.14,85.86189078]
[1740717915847,15.0,128.32,128.14,85.86189078]
[1740717916047,15.0,128.32,128.12,85.86189078]
[1740717916646,7.8007,128.31,128.22,7.8059]
[1740717916847,0.05378014,128.23,128.21,0.05790627]
[1740717917052,212.26,128.29,128.12,85.86189078]
[1740717917453,1.4195375,128.28,128.12,85.86189078]
[1740717917654,15.0,128.32,128.12,85.86189078]
[1740717917853,7.9277,128.34,128.13,0.3019]
[1740717918054,7.9277,128.34,128.15,85.86189078]
[1740717918256,0.05718708,128.25,128.22,0.0523174]
[1740717918554,7.9277,128.34,128.15,85.86189078]
[1740717918951,0.05413973,128.25,128.22,0.05673784]
[1740717919148,3.9649,128.34,128.22,0.05673784]
[1740717919354,3.9649,128.34,128.15,85.86189078]
[1740717919555,0.05623132,128.25,128.22,0.05116413]
[1740717920051,7.7998,128.33,128.26,7.8035]
[1740717920359,9.785e-05,128.25,128.19,15.0]
[1740717920657,7.8002,128.32,128.25,7.804]
[1740717920850,4.1444,128.31,128.19,15.0]
[1740717921051,4.1444,128.31,128.26,7.8031]
[1740717921653,0.03657672,128.3,128.27,0.05166873]
[1740717922762,0.03657672,128.3,128.27,127.09278254]
[1740717923563,7.8023,128.28,128.27,127.09278254]
[1740717923760,7.8023,128.28,128.27,120.81138254]
[1740717923962,0.03657672,128.3,128.27,120.81138254]
[1740717924567,0.03657672,128.3,128.29,7.8017]
[1740717924864,7.672e-05,128.3,128.29,7.8017]
[1740717926664,7.672e-05,128.3,128.28,7.86047049]
[1740717926961,7.672e-05,128.3,128.28,0.05827049]
[1740717927164,7.672e-05,128.3,128.29,7.8017]
[1740717927665,4.0372,128.44,128.32,7.7998]
[1740717927966,7.7967,128.38,128.32,7.7998]
[1740717928166,4.0624,128.43,128.29,109.86680488]
[1740717928768,4.0624,128.43,128.35,0.05083796]
[1740717928769,0.05330059,128.37,128.35,0.05083796]
[1740717928971,3.848,128.42,128.29,154.55429958]
[1740717929469,3.848,128.42,128.33,85.01849456]
[1740717929970,7.797,128.37,128.33,85.01849456]
[1740717930167,7.797,128.37,128.36,0.05879369]
[1740717930367,3.848,128.42,128.36,0.05879369]
[1740717930671,0.05547329,128.38,128.36,0.05879369]
[1740717931468,7.329e-05,128.38,128.37,7.7969]
[1740717931873,7.329e-05,128.38,128.37,118.57685796]
[1740717932169,7.329e-05,128.38,128.37,110.77995796]
[1740717932766,7.329e-05,128.38,128.37,104.50175796]
[1740717933164,7.79637329,128.38,128.37,104.50175796]